bitfinex/quotes_SOLUSD_20240607
["timestamp","ask_amount","ask_price","bid_price","bid_amount"]
[1717778078300,6.13,170.01,169.96,2.1769]
[1717778078513,6.13,170.01,169.97,2.1768]
[1717778079217,8.3063,170.01,169.97,2.1768]
[1717778079426,6.13,170.01,169.97,2.1768]
[1717778080293,8.3063,170.01,169.97,2.1768]
[1717778080720,6.13,170.0,169.96,2.1768]
[1717778081289,6.13,170.0,169.97,2.1768]
[1717778081489,6.13,170.0,169.96,2.1769]
[1717778081804,6.13,170.0,169.97,2.1768]
[1717778082195,6.13,170.0,169.96,2.1769]
[1717778082707,6.13,170.0,169.97,2.1768]
[1717778083015,6.13,170.0,169.96,2.1769]
[1717778083396,12.2181,170.0,169.96,2.1769]
[1717778083820,6.0881,170.0,169.96,2.1769]
[1717778084410,6.575,170.04,169.96,6.13]
[1717778084625,8.751,170.04,170.0,2.1764]
[1717778085124,8.751,170.04,169.99,8.3065]
[1717778085303,2.1761,170.03,169.99,8.3065]
[1717778085821,2.1761,170.03,169.99,6.13]
[1717778086007,2.1761,170.03,169.98,8.3066]
[1717778086726,2.1762,170.02,169.98,8.3066]
[1717778087221,2.1762,170.02,169.98,2.1766]
[1717778087421,8.3061,170.03,169.98,2.1766]
[1717778087628,8.3061,170.03,169.99,2.1765]
[1717778088721,8.3061,170.03,169.98,2.1766]
[1717778089305,8.3061,170.03,169.99,2.1765]
[1717778089721,2.1762,170.02,169.98,2.1766]
[1717778090413,8.3061,170.03,169.98,2.1766]
[1717778091610,2.1762,170.02,169.98,2.1766]
[1717778091937,6.13,170.01,169.98,2.1766]
[1717778092310,2.1766,169.99,169.95,2.177]
[1717778092625,2.1766,169.99,169.91,7.3304464]
[1717778092626,6.13,169.99,169.94,2.1771]
[1717778092833,8.3066,169.99,169.95,2.1771]
[1717778094922,2.1767,169.98,169.94,2.1771]
[1717778095823,8.3066,169.99,169.95,2.1771]
[1717778096040,2.1766,169.99,169.95,2.1771]
[1717778096747,2.1766,169.99,169.94,8.3071]
[1717778096945,2.1767,169.98,169.94,8.3071]
[1717778097144,12.1646,170.0,169.94,8.3071]
[1717778097320,2.1766,169.99,169.94,8.3071]
[1717778097521,2.1767,169.98,169.92,10.8873]
[1717778097737,2.1767,169.98,169.94,8.3071]
[1717778098018,2.1767,169.98,169.94,2.1771]
[1717778098440,2.1766,169.99,169.94,2.1771]
[1717778098625,8.3066,169.99,169.95,2.177]
[1717778098830,2.1767,169.98,169.94,2.1771]
[1717778099222,6.13,169.99,169.93,2.1773]
[1717778099542,16.917,170.0,169.93,2.1773]
[1717778099543,2.1769,169.97,169.93,2.1773]
[1717778099927,8.3068,169.98,169.93,2.1773]
[1717778100320,14.3678,169.97,169.93,2.1773]
[1717778100521,12.191,169.96,169.92,2.1774]
[1717778100744,12.191,169.96,169.93,2.1773]
[1717778101147,12.191,169.96,169.92,2.1774]
[1717778101337,12.191,169.96,169.91,2.9754464]
[1717778101538,8.3071,169.95,169.91,0.7979464]
[1717778101867,8.3071,169.95,169.91,2.9755464]
[1717778102027,8.238,169.96,169.91,2.9755464]
[1717778102227,8.238,169.96,169.92,2.1774]
[1717778102534,14.368,169.96,169.91,2.9754464]
[1717778103845,8.238,169.96,169.91,2.9754464]
[1717778104035,6.13,169.95,169.91,0.7979464]
[1717778104348,6.061,169.96,169.92,2.1774]
[1717778104652,12.191,169.96,169.92,2.1774]
[1717778104831,14.368,169.96,169.92,2.1774]
[1717778105352,8.238,169.96,169.92,2.1774]
[1717778105849,2.1771,169.95,169.91,2.9754464]
[1717778106530,8.5212,169.95,169.91,0.7979464]
[1717778106734,8.3073,169.94,169.91,0.7979464]
[1717778107334,14.7288,169.94,169.91,0.7979464]
[1717778107537,12.5515,169.94,169.91,0.7979464]
[1717778108046,6.13,169.93,169.91,0.7979464]
[1717778110658,8.3071,169.95,169.91,0.7979464]
[1717778110831,6.13,169.94,169.91,0.7979464]
[1717778111033,6.13,169.93,169.91,0.7979464]
[1717778112555,8.3073,169.93,169.91,0.7979464]
[1717778112734,6.13,169.93,169.91,0.7979464]
[1717778114630,5.7506,169.93,169.91,0.7979464]
[1717778115256,7.9279,169.93,169.91,0.7979464]
[1717778115551,8.3074,169.92,169.91,0.7979464]
[1717778115971,28.3074,169.92,169.91,0.7979464]
[1717778116153,34.8189,169.92,169.91,0.7979464]
[1717778118149,14.8189,169.92,169.91,0.7979464]
[1717778118350,34.8189,169.92,169.91,0.7979464]
[1717778118970,28.3074,169.92,169.91,0.7979464]
[1717778120773,2.1774,169.93,169.91,0.7979464]
[1717778120944,6.09547729,169.97,169.91,0.7979464]
[1717778121148,6.13,169.96,169.92,2.1774]
[1717778121352,6.13,169.95,169.91,0.7979464]
[1717778121552,8.3073,169.94,169.91,0.7979464]
[1717778122187,6.13,169.93,169.91,0.7979464]
[1717778122354,6.13,169.92,169.91,0.7979464]
[1717778123673,8.3074,169.92,169.91,0.7979464]
[1717778124378,6.13,169.92,169.91,0.7979464]
[1717778124885,8.3074,169.92,169.91,0.7979464]
[1717778127577,6.13,169.92,169.91,0.7979464]
[1717778127764,8.3074,169.92,169.91,0.7979464]
[1717778130353,2.1773,169.93,169.91,0.7979464]
[1717778130554,6.13,169.92,169.91,0.7979464]
[1717778132167,2.1773,169.93,169.91,0.7979464]
[1717778132168,6.09698861,169.97,169.91,0.7979464]
[1717778132461,6.09698861,169.97,169.92,2.1774]
[1717778132462,8.3069,169.97,169.92,2.1774]
[1717778132659,2.1769,169.96,169.92,2.1774]
[1717778133362,2.1769,169.96,169.91,9.1054464]
[1717778133769,2.1766,169.99,169.92,4.3548]
[1717778133985,6.13,169.98,169.94,2.1771]
[1717778134183,8.27428593,170.01,169.96,2.1769]
[1717778134357,14.40428593,170.01,169.96,2.1769]
[1717778134559,2.1764,170.01,169.96,8.3069]
[1717778134761,8.3064,170.01,169.96,2.1769]
[1717778134985,6.13,170.0,169.96,2.1769]
[1717778136180,2.1764,170.01,169.96,2.1769]
[1717778136361,6.13,170.0,169.97,2.1768]
[1717778137189,2.1761,170.03,169.98,2.1766]
[1717778137365,6.13,170.02,169.98,2.1766]
[1717778138093,8.3061,170.03,169.98,2.1766]
[1717778138421,2.1762,170.02,169.97,8.3067]
[1717778138582,6.13,170.01,169.97,2.1767]
[1717778139291,6.13,170.01,169.98,2.1767]
[1717778139494,6.13,170.02,169.98,2.1767]
[1717778139694,8.3062,170.02,169.98,2.1767]
[1717778140204,8.3062,170.02,169.97,2.1767]
[1717778141622,2.1761,170.03,169.96,10.4838]
[1717778141797,6.13,170.02,169.98,2.1766]
[1717778142122,6.13,170.02,169.99,2.1765]
[1717778142310,8.3062,170.02,169.98,2.1766]
[1717778142484,8.3063,170.01,169.97,2.1768]
[1717778142683,6.13,170.01,169.97,2.1768]
[1717778143101,6.13,170.01,169.97,8.7766]
[1717778143495,6.13,170.01,169.98,2.1767]
[1717778143889,8.3062,170.02,169.98,2.1767]
[1717778144090,2.1762,170.02,169.98,2.1767]
[1717778144306,6.13,170.02,169.98,8.7765]
[1717778144914,2.1759,170.05,170.0,2.1763]
[1717778145205,8.3059,170.04,170.0,6.4121]
[1717778145405,2.1759,170.05,170.0,8.5885]
[1717778145708,6.13,170.04,170.0,8.5885]
[1717778145909,8.3059,170.04,170.0,8.5885]
[1717778146316,6.13,170.03,170.0,6.4121]
[1717778146814,6.13,170.03,170.0,8.5885]
[1717778148007,2.1757,170.06,169.99,21.3658]
[1717778148210,6.13,170.06,170.02,2.1761]
[1717778149605,6.13,170.06,170.03,2.176]
[1717778150204,6.13,170.06,169.99,20.8553]
[1717778150401,6.13,170.05,170.01,2.1762]
[1717778150902,6.13,170.05,170.02,2.1761]
[1717778151898,2.1755,170.08,170.03,2.176]
[1717778152098,4.3507,170.09,170.02,2.1761]
[1717778152293,2.1756,170.07,170.02,2.1761]
[1717778153309,2.1756,170.07,170.03,2.176]
[1717778154238,2.1753,170.09,170.04,2.1759]
[1717778154526,6.13,170.08,170.04,8.4158]
[1717778154898,8.3054,170.08,170.04,8.4158]
[1717778155296,6.13,170.09,170.04,6.2399]
[1717778155531,6.13,170.08,170.05,2.1757]
[1717778156609,6.13,170.08,170.04,8.4157]
[1717778157326,6.13,170.08,170.05,2.1758]
[1717778160434,2.1751,170.11,170.06,2.1756]
[1717778160611,8.3052,170.1,170.05,6.3366]
[1717778160814,6.13,170.1,170.06,2.1756]
[1717778161021,6.13,170.09,170.06,2.1756]
[1717778161707,8.3051,170.11,170.06,8.5656]
[1717778162017,8.3051,170.11,170.07,2.1755]
[1717778162426,8.3051,170.11,170.06,8.5656]
[1717778162623,2.1752,170.1,170.06,6.39]
[1717778163421,2.1752,170.1,170.05,2.1757]
[1717778163618,6.13,170.08,170.04,8.6636]
[1717778164143,2.1753,170.09,170.0,12.6178]
[1717778164144,6.13,170.06,170.0,12.6178]
[1717778164309,6.13,170.05,170.01,8.664]
[1717778164727,2.1757,170.06,170.01,8.664]
[1717778164728,2.1757,170.06,170.02,2.1762]
[1717778164926,8.3057,170.06,170.02,2.1762]
[1717778165138,6.13,170.06,170.02,2.1762]
[1717778165314,6.13,170.06,170.03,2.176]
[1717778165834,2.1755,170.08,170.03,2.176]
[1717778166010,6.13,170.06,170.03,2.176]
[1717778166412,6.13,170.08,170.04,2.1759]
[1717778168532,8.3053,170.09,170.05,2.1758]
[1717778168734,2.1752,170.1,170.06,2.1756]
[1717778169036,2.175,170.12,170.07,2.1755]
[1717778169237,8.305,170.11,170.07,2.1755]
[1717778169538,6.13,170.11,170.07,2.1755]
[1717778169739,6.13,170.11,170.08,2.1753]
[1717778169910,6.13,170.12,170.08,2.1753]
[1717778170110,2.1748,170.13,170.09,2.1753]
[1717778170337,2.1746,170.14,170.08,6.13]
[1717778170634,8.3046,170.14,170.08,6.13]
[1717778170944,8.3045,170.15,170.11,2.175]
[1717778171309,6.13,170.15,170.12,2.1748]
[1717778171621,2.1744,170.16,170.11,14.3884]
[1717778171815,6.13,170.17,170.12,2.1749]
[1717778172332,8.3043,170.17,170.12,2.1749]
[1717778172718,8.3043,170.17,170.12,8.3657]
[1717778173437,4.3482,170.19,170.13,2.1747]
[1717778173609,6.13,170.17,170.13,2.1747]
[1717778173812,6.13,170.18,170.13,2.1747]
[1717778174036,8.3041,170.18,170.13,2.1747]
[1717778174234,2.1745,170.16,170.12,6.1908]
[1717778174907,2.1745,170.16,170.12,8.3657]
[1717778175440,10.8702,170.19,170.1,2.1751]
[1717778175441,8.3045,170.15,170.1,2.1751]
[1717778175645,2.1748,170.13,170.06,6.297]
[1717778175840,6.13,170.11,170.06,8.4726]
[1717778176145,8.3052,170.1,170.06,6.297]
[1717778176324,6.13,170.1,170.06,8.4727]
[1717778177216,6.13,170.1,170.07,2.1755]
[1717778178541,2.1748,170.13,170.08,2.1754]
[1717778178743,6.13,170.12,170.08,2.1754]
[1717778179542,8.3049,170.12,170.08,2.1754]
[1717778180041,10.6103,170.17,170.07,10.4809]
[1717778180247,8.3047,170.14,170.08,6.13]
[1717778180440,2.1747,170.14,170.09,12.7741]
[1717778181344,20.0,170.16,170.11,6.13]
[1717778181539,6.13,170.16,170.12,2.1748]
[1717778181841,6.13,170.16,170.12,8.6738]
[1717778182040,6.13,170.16,170.13,2.1747]
[1717778182341,8.3043,170.17,170.13,2.1747]
[1717778182646,2.1744,170.16,170.12,8.6738]
[1717778182823,8.3043,170.17,170.12,8.6738]
[1717778183224,2.1743,170.17,170.13,2.1747]
[1717778183527,8.3043,170.17,170.13,2.1747]
[1717778184944,8.3043,170.17,170.12,8.6738]
[1717778185446,8.3043,170.17,170.13,2.1747]
[1717778185821,6.13,170.16,170.13,2.1747]
[1717778187736,6.13,170.16,170.12,6.499]
[1717778188733,6.13,170.16,170.13,2.1747]
[1717778189116,8.3044,170.16,170.12,8.6738]
[1717778189324,8.3045,170.15,170.11,2.1749]
[1717778189523,8.3045,170.15,170.09,14.8308]
[1717778189524,2.1744,170.16,170.12,2.1749]
[1717778189836,8.3044,170.16,170.12,8.7915]
[1717778190219,6.13,170.16,170.12,6.6166]
[1717778190446,2.1742,170.18,170.13,8.4203]
[1717778190643,8.3043,170.17,170.13,8.4203]
[1717778190825,6.13,170.16,170.13,8.4203]
[1717778191029,6.13,170.16,170.13,6.2456]
[1717778192542,6.13,170.16,170.13,8.4203]
[1717778193343,6.13,170.17,170.13,8.4203]
[1717778193924,8.3042,170.18,170.14,2.1746]
[1717778194241,2.1743,170.17,170.13,8.4203]
[1717778194429,6.13,170.17,170.13,8.4203]
[1717778194636,8.3043,170.17,170.13,8.4203]
[1717778195240,6.13,170.17,170.13,8.4203]
[1717778195644,6.13,170.17,170.14,2.1746]
[1717778196157,6.13,170.17,170.13,8.4203]
[1717778196452,8.3042,170.18,170.13,8.4203]
[1717778196853,2.1742,170.17,170.13,8.4203]
[1717778197229,8.3042,170.18,170.13,4.22931599]
[1717778197425,8.3042,170.18,170.14,8.3151]
[1717778198756,8.3042,170.18,170.14,6.1405]
[1717778199643,2.1743,170.17,170.14,6.1405]
[1717778201351,4.3484,170.18,170.11,2.1749]
[1717778201543,6.13,170.16,170.12,6.6312]
[1717778201750,2.1745,170.15,170.12,6.6312]
[1717778202044,8.3046,170.15,170.12,6.6312]
[1717778202729,8.3046,170.15,170.11,2.1749]
[1717778202929,8.3047,170.14,170.1,8.8063]
[1717778203566,8.3047,170.14,170.11,2.175]
[1717778203567,6.13,170.14,170.11,2.175]
[1717778204941,6.13,170.14,170.12,2.1749]
[1717778205144,6.13,170.15,170.12,2.1749]
[1717778205338,6.13,170.14,170.11,2.1749]
[1717778205745,2.1749,170.13,170.08,2.1753]
[1717778206032,6.13,170.11,170.08,2.1753]
[1717778206251,8.3051,170.11,170.06,6.3209]
[1717778206455,6.13,170.1,170.07,2.1755]
[1717778206945,6.13,170.11,170.07,2.1754]
[1717778207253,6.13,170.11,170.07,2.1755]
[1717778207461,6.13,170.11,170.08,2.1754]
[1717778207753,6.13,170.11,170.07,2.1755]
[1717778207956,8.305,170.11,170.07,2.1755]
[1717778208856,6.13,170.11,170.07,2.1755]
[1717778210059,6.13,170.11,170.08,2.1754]
[1717778210958,6.13,170.12,170.09,2.1753]
[1717778211352,8.3049,170.12,170.08,2.1753]
[1717778212063,8.3049,170.12,170.06,16.8022]
[1717778212240,8.3049,170.12,170.08,2.1753]
[1717778212841,8.3049,170.12,170.07,2.1755]
[1717778213256,8.3049,170.12,170.08,2.1754]
[1717778213485,6.13,170.11,170.07,2.1755]
[1717778213777,8.305,170.11,170.07,2.1755]
[1717778214073,6.13,170.11,170.06,12.4509]
[1717778214580,6.13,170.11,170.08,2.1754]
[1717778215557,6.13,170.11,170.07,2.1755]
[1717778217452,6.13,170.11,170.06,2.1756]
[1717778217661,6.13,170.09,170.06,2.1756]
[1717778218179,6.13,170.08,170.06,2.1756]
[1717778218766,6.13,170.08,170.05,2.1757]
[1717778220359,6.13,170.08,170.03,4.352]
[1717778220360,6.13,170.06,170.02,2.1761]
[1717778220678,6.13,170.05,170.03,2.176]
[1717778220988,6.13,170.05,170.02,2.1761]
[1717778221168,6.13,170.05,170.01,6.6018]
[1717778221369,2.1754,170.08,170.04,2.1759]
[1717778221569,6.13,170.06,170.04,2.1759]
[1717778222073,6.13,170.07,170.04,2.1759]
[1717778222982,6.13,170.07,170.03,2.176]
[1717778223777,6.13,170.07,170.02,4.3524]
[1717778223778,6.13,170.07,170.04,2.1759]
[1717778223984,8.3055,170.07,170.03,2.176]
[1717778224165,6.13,170.06,170.03,2.176]
[1717778224980,6.13,170.05,169.99,10.483]
[1717778225177,6.13,170.05,170.02,2.1761]
[1717778225476,6.13,170.05,169.99,21.3659]
[1717778225477,6.13,170.05,170.03,2.176]
[1717778227160,6.13,170.05,170.02,2.1761]
[1717778227361,6.13,170.05,170.03,2.1759]
[1717778227569,6.13,170.06,170.03,2.1759]
[1717778228165,6.13,170.06,170.03,2.176]
[1717778231500,8.3057,170.06,170.03,2.176]
[1717778231963,8.3057,170.06,170.02,2.1761]
[1717778234000,6.13,170.05,170.02,2.1761]
[1717778236088,6.13,170.04,170.01,2.1762]
[1717778236814,6.13,170.04,169.98,21.3668]
[1717778237011,6.13,170.04,170.01,2.1762]
[1717778238990,2.1758,170.05,170.01,2.1762]
[1717778239310,8.3058,170.05,170.01,2.1762]
[1717778239890,6.13,170.05,170.02,2.1761]
[1717778241111,2.1757,170.06,170.02,2.1761]
[1717778241112,8.3057,170.06,170.02,2.1761]
[1717778241613,15.2246,170.12,170.03,12.6581]
[1717778241919,6.13,170.11,170.08,2.1753]
[1717778242206,2.175,170.12,170.08,2.1753]
[1717778242410,8.305,170.12,170.08,2.1753]
[1717778245112,16.71766271,170.17,170.1,2.175]
[1717778245302,6.13,170.15,170.1,2.175]
[1717778245500,2.1746,170.14,170.1,2.175]
[1717778248014,2.1746,170.14,170.09,8.3052]
[1717778248199,8.3048,170.13,170.09,2.1752]
[1717778248623,6.13,170.12,170.09,2.1752]
[1717778248803,8.3049,170.12,170.08,2.1753]
[1717778249707,6.13,170.12,170.08,2.1753]
[1717778250725,6.13,170.12,170.09,2.1753]
[1717778253301,8.3051,170.1,170.05,4.3514]
[1717778253626,8.3051,170.1,170.03,8.7041]
[1717778253627,6.13,170.09,170.06,2.1756]
[1717778256431,6.13,170.09,170.07,2.1755]
[1717778259513,8.3053,170.09,170.05,2.1757]
[1717778259728,8.3053,170.09,170.03,10.482]
[1717778260230,6.13,170.09,170.06,2.1756]
[1717778260723,6.13,170.09,170.07,2.1754]
[1717778261222,6.13,170.09,170.06,2.1756]
[1717778262908,6.13,170.08,170.05,2.1757]
[1717778263431,6.13,170.07,170.04,2.1758]
[1717778263728,6.13,170.06,170.04,2.1758]
[1717778265222,6.13,170.06,170.02,2.1761]
[1717778265223,2.1757,170.06,170.02,2.1761]
[1717778265522,6.13,170.04,170.02,2.1761]
[1717778267105,6.13,170.05,170.03,2.176]
[1717778268210,6.13,170.05,170.02,2.1761]
[1717778269625,6.13,170.04,170.02,2.1761]
[1717778272119,6.13,170.05,170.02,2.1761]
[1717778273526,6.13,170.06,170.03,2.176]
[1717778273722,2.1756,170.07,170.03,2.176]
[1717778274030,6.13,170.06,170.03,2.176]
[1717778274816,8.3057,170.06,170.03,2.176]
[1717778275512,8.3057,170.06,170.02,2.1761]
[1717778276030,2.1758,170.05,170.02,2.1761]
[1717778276233,8.3058,170.05,170.01,2.1762]
[1717778277515,8.3058,170.05,170.02,2.1762]
[1717778277909,2.1758,170.05,170.02,2.1762]
[1717778278107,6.13,170.03,169.99,4.3529]
[1717778278413,6.13,170.01,169.99,2.1765]
[1717778278611,6.13,170.01,169.98,2.1766]
[1717778279512,6.13,170.01,169.99,2.1765]
[1717778281108,6.13,170.01,169.98,2.1766]
[1717778282264,6.13,170.01,169.99,2.1765]
[1717778283836,2.1761,170.03,169.99,2.1765]
[1717778284144,6.13,170.01,169.99,2.1765]
[1717778284809,6.13,170.02,169.99,2.1765]
[1717778287026,6.13,170.02,169.98,2.1766]
[1717778287214,6.13,170.02,169.99,2.1765]
[1717778287845,8.3062,170.02,169.98,2.1766]
[1717778290246,6.13,170.01,169.98,2.1766]
[1717778290940,6.13,170.01,169.99,2.1765]
[1717778291825,6.13,170.01,169.98,2.1766]
[1717778294627,6.13,169.99,169.96,2.1769]
[1717778294831,6.13,169.98,169.96,2.1769]
[1717778295049,6.13,169.98,169.97,2.1768]
[1717778296039,6.13,169.99,169.97,2.1768]
[1717778296355,6.13,169.99,169.93,8.7091]
[1717778296652,6.13,169.98,169.95,2.177]
[1717778296850,6.13,169.98,169.96,2.1769]
[1717778297048,6.13,169.98,169.93,13.0637]
[1717778297261,6.13,169.98,169.93,19.5957]
[1717778297458,6.13,169.98,169.96,2.1769]
[1717778303267,2.1765,170.0,169.96,2.1769]
[1717778303931,6.13,169.98,169.96,2.1769]
[1717778305243,2.1765,170.0,169.96,2.1769]
[1717778305462,6.13,169.98,169.96,2.1769]
[1717778306840,6.13,169.98,169.95,2.177]
[1717778307550,2.1765,170.0,169.96,2.1769]
[1717778307845,6.13,169.98,169.96,2.1769]
[1717778313166,2.1765,170.0,169.96,2.1769]
[1717778313655,6.13,169.98,169.96,2.1769]
[1717778314566,6.13,169.98,169.95,2.177]
[1717778314762,2.1765,170.0,169.96,2.1769]
[1717778315064,6.13,169.98,169.96,2.1769]
[1717778315254,2.1765,170.0,169.97,2.1768]
[1717778315563,6.13,170.01,169.98,2.1766]
[1717778315766,2.1761,170.03,169.99,2.1765]
[1717778316068,4.3521,170.04,170.0,2.1764]
[1717778316069,2.176,170.04,170.0,2.1764]
[1717778316365,6.13,170.03,170.0,2.1764]
[1717778316743,6.13,170.03,169.98,4.3534]
[1717778316744,6.13,170.03,170.01,2.1763]
[1717778316943,35.4716,170.08,170.01,2.1763]
[1717778317168,6.13,170.03,170.01,2.1763]
[1717778318065,6.13,170.03,170.0,2.1764]
[1717778321853,6.13,170.02,170.0,2.1764]
[1717778322373,2.1759,170.04,170.0,2.1764]
[1717778322570,6.13,170.02,170.0,2.1764]
[1717778322771,2.1759,170.04,170.0,2.1764]
[1717778322957,6.13,170.02,170.0,2.1764]
[1717778324268,2.1759,170.04,170.0,2.1764]
[1717778324447,6.13,170.02,170.0,2.1764]
[1717778326377,6.13,170.01,169.96,15.2386]
[1717778326578,6.13,170.0,169.98,2.1766]
[1717778327478,6.13,170.0,169.99,2.1765]
[1717778331172,2.1761,170.03,169.99,2.1765]
[1717778331360,6.13,170.0,169.99,2.1765]
[1717778331568,6.13,170.01,169.99,2.1765]
[1717778332570,4.3517,170.05,170.0,2.1764]
[1717778332571,2.176,170.04,170.0,2.1764]
[1717778333075,12.9631,170.09,169.99,6.5297]
[1717778333261,12.9631,170.09,170.02,2.1761]
[1717778333262,2.1757,170.06,170.02,2.1761]
[1717778333466,8.3057,170.06,170.02,2.1761]
[1717778334657,6.13,170.05,170.02,2.1761]
[1717778335486,6.13,170.05,170.01,2.1762]
[1717778335487,8.3058,170.05,170.01,2.1762]
[1717778335673,2.1758,170.06,170.01,2.1762]
[1717778335859,6.13,170.05,170.01,2.1762]
[1717778336191,6.13,170.04,170.01,2.1762]
[1717778336481,8.3058,170.05,170.01,2.1762]
[1717778339267,2.1758,170.05,170.01,2.1762]
[1717778339482,6.13,170.04,170.01,2.1762]
[1717778340198,2.1758,170.05,170.01,2.1762]
[1717778340480,6.13,170.04,170.01,2.1762]
[1717778341972,6.13,170.04,170.0,2.1763]
[1717778342165,6.13,170.04,170.0,6.3598]
[1717778342358,2.1753,170.09,170.02,16.8422]
[1717778342561,10.8753,170.11,170.04,8.5496]
[1717778342857,2.1752,170.1,170.06,2.1756]
[1717778343072,6.13,170.08,170.06,2.1756]
[1717778343480,6.13,170.08,170.04,6.3738]
[1717778343481,6.13,170.08,170.05,2.1757]
[1717778343872,6.13,170.08,170.04,8.5496]
[1717778344177,6.13,170.08,170.05,2.1758]
[1717778344383,6.13,170.07,170.04,2.1758]
[1717778344603,6.13,170.06,170.03,2.1759]
[1717778344965,6.13,170.05,170.03,2.1759]
[1717778345270,2.1756,170.07,170.03,2.1759]
[1717778346667,2.1757,170.06,169.99,10.6975]
[1717778346878,6.13,170.01,170.0,2.1764]
[1717778347082,6.13,170.01,169.99,2.1764]
[1717778348297,6.13,170.01,170.0,2.1764]
[1717778348670,2.1758,170.05,170.01,2.1763]
[1717778349005,6.13,170.02,170.01,2.1763]
[1717778349297,2.1758,170.05,170.01,2.1763]
[1717778349473,6.13,170.02,170.01,2.1763]
[1717778350294,2.1758,170.05,170.01,2.1763]
[1717778350598,6.13,170.03,170.01,2.1763]
[1717778351209,2.1757,170.06,170.01,2.1763]
[1717778351379,6.13,170.04,170.01,2.1763]
[1717778352690,6.13,170.04,170.02,6.1619]
[1717778352882,6.13,170.05,170.02,8.338]
[1717778353400,2.1755,170.08,170.03,2.176]
[1717778353691,8.3055,170.07,170.03,2.176]
[1717778354476,2.1757,170.06,170.02,8.338]
[1717778355206,6.13,170.05,170.02,8.338]
[1717778356702,6.13,170.05,170.01,2.1762]
[1717778357200,6.13,170.04,170.01,2.1762]
[1717778357898,2.1758,170.05,170.01,2.1762]
[1717778360401,2.1758,170.05,170.0,2.1763]
[1717778360603,6.13,170.02,170.0,2.1763]
[1717778360817,2.1761,170.03,169.99,2.1765]
[1717778361100,6.13,170.0,169.99,2.1765]
[1717778362504,2.1761,170.03,169.99,2.1765]
[1717778362708,6.13,170.0,169.99,2.1765]
[1717778365005,6.13,170.01,170.0,2.1764]
[1717778365506,6.13,170.02,170.0,2.1764]
[1717778366787,6.13,170.01,170.0,2.1764]
[1717778366983,6.13,170.01,169.99,2.1765]
[1717778367888,6.13,170.0,169.99,2.1765]
[1717778370006,6.13,170.0,169.98,2.1766]
[1717778370181,6.13,169.99,169.98,2.1766]
[1717778371106,2.1761,170.03,169.99,2.1765]
[1717778371302,6.13,170.0,169.99,2.1765]
[1717778371707,2.1761,170.03,169.99,2.1765]
[1717778371891,6.13,170.0,169.99,2.1765]
[1717778372202,6.13,170.0,169.98,2.1766]
[1717778372512,6.13,169.99,169.98,2.1766]
[1717778375411,2.1761,170.03,169.99,2.1765]
[1717778375712,6.13,170.0,169.99,2.1765]
[1717778379306,6.13,170.0,169.98,2.1766]
[1717778379501,6.13,169.99,169.98,2.1766]